bitfinex-derivatives/quotes_BTCF0:USTF0_20241227
["timestamp","ask_amount","ask_price","bid_price","bid_amount"]
[1735289812357,0.052273,95783.0,95781.0,0.01138436]
[1735289812556,0.052273,95783.0,95779.0,0.00010345]
[1735289813357,0.052274,95781.0,95780.0,0.009]
[1735289813857,0.052274,95781.0,95779.0,0.00910345]
[1735289814057,0.052274,95781.0,95779.0,0.01310345]
[1735289814858,0.052274,95781.0,95780.0,0.004]
[1735289815557,0.053274,95781.0,95780.0,0.009]
[1735289816355,0.052274,95781.0,95779.0,0.00410345]
[1735289816554,0.053274,95781.0,95780.0,0.02038507]
[1735289817460,0.053274,95781.0,95780.0,0.02438507]
[1735289817661,0.06407564,95781.0,95780.0,0.02438507]
[1735289817856,0.06407564,95781.0,95780.0,0.02439657]
[1735289818160,0.06407564,95781.0,95780.0,0.013]
[1735289818352,0.06407564,95781.0,95780.0,0.004]
[1735289818560,0.06407564,95781.0,95764.0,0.052283]
[1735289818561,0.356,95780.0,95740.0,0.3112398]
[1735289818761,0.052295,95742.0,95741.0,0.01139688]
[1735289819156,0.10391503,95760.0,95741.0,0.01139688]
[1735289819459,0.052292,95748.0,95742.0,0.01139688]
[1735289819664,0.10391503,95752.0,95743.0,0.01139688]
[1735289819958,0.356,95758.0,95740.0,0.27051069]
[1735289820165,0.052294,95745.0,95731.0,0.00056]
[1735289820461,0.00011724,95744.0,95732.0,0.19148191]
[1735289820757,0.00011724,95744.0,95733.0,0.01138191]
[1735289820959,0.00011724,95744.0,95740.0,0.009]
[1735289821165,0.001,95742.0,95741.0,0.009]
[1735289821463,0.00817512,95742.0,95741.0,0.009]
[1735289821658,0.00717512,95742.0,95740.0,0.009]
[1735289821859,0.00717512,95741.0,95732.0,0.1811]
[1735289822064,0.00717512,95740.0,95733.0,0.01146397]
[1735289822264,0.00111724,95744.0,95732.0,0.1801]
[1735289822462,0.006,95742.0,95741.0,0.001]
[1735289822653,0.06546177,95742.0,95741.0,0.001]
[1735289823164,0.002,95741.0,95732.0,0.1801]
[1735289823458,0.052299,95735.0,95732.0,0.1801]
[1735289823662,0.00716354,95734.0,95732.0,0.1801]
[1735289823967,0.002,95741.0,95740.0,0.052296]
[1735289824161,0.002,95741.0,95740.0,0.06376299]
[1735289824466,0.004,95741.0,95740.0,0.06376299]
[1735289825259,0.003,95741.0,95740.0,0.06376299]
[1735289825864,0.009,95741.0,95740.0,0.06476299]
[1735289826657,0.009,95741.0,95740.0,0.06476174]
[1735289827866,0.009,95741.0,95740.0,0.053296]
[1735289828467,0.061295,95741.0,95740.0,0.001]
[1735289832266,0.009,95741.0,95740.0,0.001]
[1735289833584,0.009,95741.0,95740.0,0.0904]
[1735289837170,0.009,95741.0,95740.0,0.10189492]
[1735289837969,0.009,95741.0,95740.0,0.0904]
[1735289838170,0.009,95741.0,95740.0,0.10188403]
[1735289838672,0.009,95741.0,95740.0,0.0904]
[1735289838868,0.009,95741.0,95740.0,0.10188776]
[1735289841669,0.009,95741.0,95740.0,0.0904]
[1735289841874,0.009,95741.0,95740.0,0.10190893]
[1735289842263,0.009,95741.0,95740.0,0.10191311]
[1735289847082,0.00011724,95744.0,95740.0,0.10191311]
[1735289847382,0.1558538,95754.0,95753.0,0.052289]
[1735289847569,0.18717728,95755.0,95753.0,0.06380211]
[1735289847770,0.18717728,95755.0,95754.0,0.09821311]
[1735289848478,0.0015672,95769.0,95768.0,0.05228]
[1735289848672,0.21902075,95770.0,95768.0,0.06379311]
[1735289848870,0.21902075,95770.0,95769.0,0.01151311]
[1735289849070,0.00064,95776.0,95769.0,0.01151311]
[1735289849279,0.21838844,95786.0,95778.0,0.052274]
[1735289849476,0.21838844,95786.0,95779.0,0.01151311]
[1735289849684,0.21838844,95786.0,95784.0,0.052272]
[1735289849979,0.21838844,95786.0,95785.0,0.01151311]
[1735289850380,0.22038844,95786.0,95785.0,0.01151311]
[1735289850578,0.22038844,95786.0,95785.0,0.01160353]
[1735289850777,0.00068,95792.0,95791.0,0.052268]
[1735289851083,0.15596993,95796.0,95795.0,0.052266]
[1735289851275,0.15596993,95796.0,95795.0,0.06385629]
[1735289851682,0.15596993,95796.0,95795.0,0.01159029]
[1735289852081,0.052263,95801.0,95791.0,0.052268]
[1735289852282,0.052263,95801.0,95792.0,0.01154933]
[1735289852580,0.052264,95799.0,95793.0,0.01154933]
[1735289852780,0.052264,95799.0,95791.0,0.052268]
[1735289852979,0.052264,95799.0,95792.0,0.01152585]
[1735289853181,0.052264,95799.0,95793.0,0.01152585]
[1735289853382,0.001,95801.0,95782.0,0.11431403]
[1735289853680,0.052268,95792.0,95783.0,0.06379187]
[1735289853881,0.0906,95791.0,95784.0,0.01151987]
[1735289854077,0.0906,95791.0,95784.0,0.052271]
[1735289855180,0.1774,95791.0,95784.0,0.052271]
[1735289858180,0.1774,95791.0,95780.0,0.10391503]
[1735289858586,0.1774,95791.0,95787.0,0.05227]
[1735289860076,0.001,95791.0,95780.0,0.10391503]
[1735289860278,0.001,95791.0,95788.0,0.052269]
[1735289861078,0.002,95791.0,95788.0,0.052269]
[1735289861482,0.001,95791.0,95788.0,0.052269]
[1735289862488,0.002,95791.0,95788.0,0.052269]
[1735289863186,0.002,95791.0,95764.0,0.00156624]
[1735289863491,0.052273,95781.0,95773.0,0.052277]
[1735289863684,0.1885,95780.0,95773.0,0.052277]
[1735289863990,0.1885,95780.0,95774.0,0.052276]
[1735289864686,0.1885,95780.0,95773.0,0.005]
[1735289865083,0.0928,95780.0,95773.0,0.005]
[1735289865391,0.0928,95780.0,95777.0,0.052274]
[1735289865596,0.0928,95780.0,95774.0,0.006]
[1735289865793,0.0957,95795.0,95788.0,0.052268]
[1735289865986,0.0957,95795.0,95790.0,0.052267]
[1735289867583,0.052261,95803.0,95780.0,0.11438476]
[1735289867894,0.003,95795.0,95790.0,0.10391503]
[1735289868389,0.002,95795.0,95790.0,0.10391503]
[1735289868591,0.003,95795.0,95790.0,0.10391503]
[1735289868896,0.003,95795.0,95794.0,0.052265]
[1735289870894,0.006,95795.0,95786.0,0.052269]
[1735289871094,0.052266,95794.0,95786.0,0.052269]
[1735289871392,0.052268,95790.0,95786.0,0.052269]
[1735289871580,0.006,95795.0,95786.0,0.052269]
[1735289871788,0.052268,95789.0,95786.0,0.052269]
[1735289872083,0.052268,95789.0,95786.0,0.054269]
[1735289872388,0.052269,95787.0,95786.0,0.002]
[1735289872591,0.052273,95781.0,95770.0,0.10391503]
[1735289872814,0.052273,95781.0,95773.0,0.052276]
[1735289872984,0.052273,95781.0,95774.0,0.052276]
[1735289873389,0.052273,95781.0,95775.0,0.052275]
[1735289874095,0.052273,95781.0,95776.0,0.01152048]
[1735289874298,0.052273,95781.0,95775.0,0.052275]
[1735289874792,0.052273,95781.0,95775.0,0.056275]
[1735289875090,0.052273,95781.0,95776.0,0.01152544]
[1735289875297,0.052273,95781.0,95777.0,0.01152544]
[1735289875492,0.052273,95781.0,95778.0,0.01152544]
[1735289875793,0.052273,95781.0,95776.0,0.004]
[1735289875994,0.052273,95781.0,95777.0,0.01153245]
[1735289876194,0.052273,95781.0,95778.0,0.01153245]
[1735289876396,0.052273,95781.0,95779.0,0.01153245]
[1735289876589,0.052273,95781.0,95780.0,0.01153245]
[1735289877795,0.052273,95781.0,95780.0,0.01155187]
[1735289878294,0.052273,95781.0,95780.0,0.01355187]
[1735289878494,0.052273,95781.0,95780.0,0.01355818]
[1735289880308,0.052273,95781.0,95780.0,0.01355511]
[1735289881083,0.12468641,95782.0,95780.0,0.01355482]
[1735289881295,0.12468641,95782.0,95781.0,0.01155482]
[1735289882593,0.052273,95784.0,95781.0,0.01155482]
[1735289882897,0.052273,95784.0,95782.0,0.01155482]
[1735289883092,0.052273,95784.0,95783.0,0.01155482]
[1735289884390,0.052273,95784.0,95783.0,0.01255482]
[1735289889091,0.052273,95784.0,95783.0,0.01254476]
[1735289895202,0.052273,95784.0,95783.0,0.01253954]
[1735289895609,0.052273,95784.0,95783.0,0.01253962]
[1735289898314,0.052273,95784.0,95783.0,0.01254395]
[1735289900613,0.20824293,95784.0,95783.0,0.01254395]
[1735289901712,0.052273,95784.0,95783.0,0.20049185]
[1735289904310,0.052273,95784.0,95783.0,0.1889479]
[1735289904504,0.10310045,95784.0,95783.0,0.1889479]
[1735289905819,0.10310045,95784.0,95783.0,0.001]
[1735289909310,0.10310045,95784.0,95783.0,0.01249071]
[1735289910212,0.10310045,95784.0,95783.0,0.01248973]
[1735289910613,0.052273,95784.0,95783.0,0.01248973]
[1735289913222,0.1458995,95784.0,95783.0,0.0239504]
[1735289913817,0.1458995,95784.0,95783.0,0.02394537]
[1735289914512,0.052273,95784.0,95783.0,0.02394537]
[1735289919429,0.052273,95784.0,95783.0,0.02395168]
[1735289922428,0.12482344,95789.0,95783.0,0.02395414]
[1735289922623,0.12482344,95789.0,95788.0,0.052271]
[1735289922824,0.12482344,95789.0,95788.0,0.06374994]
[1735289923132,0.12482344,95789.0,95788.0,0.06374749]
[1735289923930,0.001,95789.0,95788.0,0.01147649]
[1735289924115,0.001,95789.0,95788.0,0.06374749]
[1735289924928,0.002,95789.0,95788.0,0.06374749]
[1735289925423,0.002,95789.0,95788.0,0.06374746]
[1735289931022,0.0935941,95796.0,95788.0,0.01147646]
[1735289931223,0.0935941,95796.0,95794.0,0.052267]
[1735289931524,0.0935941,95796.0,95795.0,0.1931]
[1735289933028,0.0945941,95796.0,95795.0,0.1931]
[1735289933228,0.001,95796.0,95795.0,0.1005]
[1735289933436,0.005,95796.0,95795.0,0.1005]
[1735289933930,0.001,95796.0,95795.0,0.1005]
[1735289934132,0.005,95796.0,95795.0,0.1005]
[1735289936530,0.005,95796.0,95795.0,0.11200704]
[1735289937136,0.0985941,95796.0,95795.0,0.11200704]
[1735289938236,0.0985941,95796.0,95795.0,0.1005]
[1735289938535,0.0985941,95796.0,95795.0,0.11201614]
[1735289938536,0.005,95796.0,95795.0,0.11201614]
[1735289941428,0.005,95796.0,95795.0,0.01151614]
[1735289942632,0.005,95796.0,95791.0,0.18764185]
[1735289942839,0.052267,95793.0,95792.0,0.01148166]
[1735289944126,0.055267,95793.0,95792.0,0.01148166]
[1735289944537,0.056267,95793.0,95792.0,0.01148166]
[1735289945736,0.056267,95793.0,95792.0,0.0114812]
[1735289950535,0.004,95793.0,95792.0,0.0114812]
[1735289950842,0.1560293,95797.0,95795.0,0.052266]
[1735289951038,0.1560293,95797.0,95796.0,0.0114812]
[1735289951634,0.1560293,95797.0,95796.0,0.01149821]
[1735289951839,0.1560293,95800.0,95796.0,0.01149821]
[1735289952049,0.1560293,95800.0,95797.0,0.01149821]
[1735289952245,0.1560293,95800.0,95798.0,0.0115031]
[1735289952544,0.1560293,95800.0,95799.0,0.0115031]
[1735289953143,0.05081734,95800.0,95799.0,0.0115031]
[1735289953345,0.05581734,95800.0,95799.0,0.0115031]
[1735289953541,0.05581734,95800.0,95799.0,0.0637671]
[1735289953842,0.006,95800.0,95799.0,0.0637671]
[1735289954736,0.006,95800.0,95799.0,0.06375331]
[1735289957140,0.006,95800.0,95799.0,0.25175211]
[1735289957752,0.006,95800.0,95799.0,0.2517526]
[1735289958451,0.006,95800.0,95799.0,0.0637538]
[1735289960739,0.006,95800.0,95799.0,0.06376861]
[1735289963040,0.006,95800.0,95799.0,0.06376729]
[1735289968857,0.058263,95800.0,95799.0,0.01150329]
[1735289969057,0.253263,95800.0,95795.0,0.24917541]
[1735289969263,0.052265,95796.0,95795.0,0.09617541]
[1735289969762,0.052268,95790.0,95789.0,0.31289197]
[1735289970150,0.11627121,95800.0,95792.0,0.052267]
[1735289970561,0.05082562,95796.0,95792.0,0.052267]
[1735289970855,0.05482562,95796.0,95795.0,0.052265]
[1735289972063,0.004,95796.0,95795.0,0.052265]
[1735289972759,0.003,95800.0,95791.0,0.28293485]
[1735289972955,0.003,95800.0,95798.0,0.052263]
[1735289973260,0.15608426,95802.0,95798.0,0.052263]
[1735289973663,0.12485487,95804.0,95798.0,0.052263]
[1735289973961,0.12485487,95804.0,95799.0,0.052263]
[1735289974161,0.002,95800.0,95799.0,0.052263]
[1735289974561,0.005,95802.0,95799.0,0.052263]
[1735289976061,0.13085487,95804.0,95799.0,0.052263]
[1735289976460,0.006,95804.0,95801.0,0.1878383]
[1735289976758,0.006,95802.0,95801.0,0.1878383]
[1735289977662,0.052262,95801.0,95796.0,0.052265]
[1735289977869,0.052264,95798.0,95793.0,0.1878383]
[1735289978263,0.052266,95795.0,95793.0,0.1878383]
[1735289978967,0.17699499,95795.0,95791.0,0.052267]
[1735289979157,0.052266,95794.0,95791.0,0.052267]
[1735289980055,0.12772899,95795.0,95792.0,0.052267]
[1735289980260,0.12472899,95795.0,95794.0,0.052266]
[1735289980463,0.20834726,95799.0,95794.0,0.052266]
[1735289981254,0.052264,95798.0,95794.0,0.052266]
[1735289981658,0.052269,95789.0,95787.0,0.1878383]
[1735289982069,0.052269,95789.0,95785.0,0.052271]
[1735289982662,0.052271,95785.0,95781.0,0.31289197]
[1735289983666,0.052271,95785.0,95778.0,0.052274]
[1735289983872,0.052272,95783.0,95778.0,0.052274]
[1735289984172,0.052272,95783.0,95781.0,0.002]
[1735289984974,0.17686166,95783.0,95782.0,0.0114092]
[1735289986476,0.052272,95783.0,95782.0,0.0114092]
[1735289986667,0.052272,95783.0,95782.0,0.0124092]
[1735289986974,0.052272,95783.0,95782.0,0.001]
[1735289987970,0.052272,95783.0,95782.0,0.01240704]
[1735289988571,0.052272,95783.0,95782.0,0.001]
[1735289989075,0.06278488,95783.0,95782.0,0.001]
[1735289991477,0.11361795,95783.0,95782.0,0.001]
[1735289992979,0.21820668,95783.0,95782.0,0.001]
[1735289993880,0.21820668,95783.0,95759.0,0.06296989]
[1735289994181,0.052282,95765.0,95760.0,0.01142481]
[1735289994387,0.052282,95765.0,95759.0,0.06296989]
[1735289994388,0.052283,95764.0,95761.0,0.01142481]
[1735289994681,0.052283,95764.0,95762.0,0.01142481]
[1735289994879,0.052283,95764.0,95763.0,0.01142481]
[1735289995273,0.2004,95779.0,95763.0,0.01142481]
[1735289995472,0.2004,95779.0,95764.0,0.01142481]
[1735289995473,0.052278,95771.0,95764.0,0.01142481]
[1735289995679,0.052279,95770.0,95765.0,0.01142481]
[1735289995881,0.09322336,95772.0,95762.0,0.004]
[1735289996077,0.052281,95767.0,95763.0,0.01141269]
[1735289996377,0.052281,95767.0,95764.0,0.01141269]
[1735289996575,0.052281,95767.0,95765.0,0.01141269]
[1735289996779,0.052281,95766.0,95765.0,0.009]
[1735289996980,0.052281,95766.0,95765.0,0.02040687]
[1735289997474,0.052281,95766.0,95765.0,0.009]
[1735289997675,0.052281,95766.0,95765.0,0.02040753]
[1735289998580,0.052281,95766.0,95765.0,0.02040546]
[1735289998776,0.052281,95766.0,95765.0,0.01140546]
[1735289999471,0.053281,95766.0,95765.0,0.009]
[1735289999682,0.001,95766.0,95753.0,0.18779388]
[1735289999886,0.052288,95754.0,95753.0,0.18779388]
[1735290000386,0.052284,95761.0,95753.0,0.19922329]
[1735290000578,0.052285,95760.0,95754.0,0.358416]
[1735290000778,0.052285,95760.0,95755.0,0.011429]
[1735290000981,0.052285,95760.0,95754.0,0.346987]
[1735290000982,0.09322336,95757.0,95754.0,0.346987]
[1735290001379,0.09322336,95757.0,95754.0,0.2947]
[1735290001686,0.14550936,95757.0,95754.0,0.2947]
[1735290002177,0.053286,95757.0,95754.0,0.2947]
[1735290002676,0.001,95757.0,95755.0,0.01142368]
[1735290002876,0.001,95757.0,95756.0,0.06371047]
[1735290002877,0.002,95757.0,95756.0,0.06371047]
[1735290003381,0.002,95757.0,95756.0,0.01142347]
[1735290003883,0.003,95757.0,95756.0,0.01142347]
[1735290004182,0.08686174,95770.0,95756.0,0.01142347]
[1735290004385,0.08686174,95770.0,95757.0,0.01142347]
[1735290004580,0.08686174,95770.0,95755.0,0.052287]
[1735290004581,0.01059747,95770.0,95758.0,0.01149138]
[1735290004779,0.12429782,95772.0,95755.0,0.052287]
[1735290004981,0.12429782,95772.0,95756.0,0.01149138]
[1735290005174,0.12429782,95772.0,95757.0,0.01149138]
[1735290005380,0.052283,95762.0,95758.0,0.0114926]
[1735290005571,0.052283,95762.0,95755.0,0.052287]
[1735290005777,0.002,95757.0,95756.0,0.01149514]
[1735290006385,0.052283,95762.0,95756.0,0.01149514]
[1735290006682,0.052283,95762.0,95757.0,0.06378114]
[1735290006884,0.001,95762.0,95759.0,0.052285]
[1735290007080,0.001,95762.0,95760.0,0.06377914]
[1735290007281,0.12429782,95771.0,95765.0,0.052282]
[1735290007476,0.12429782,95771.0,95766.0,0.06379534]
[1735290007674,0.05228,95769.0,95767.0,0.01151434]
[1735290007874,0.05228,95769.0,95768.0,0.01151434]
[1735290008291,0.053284,95762.0,95754.0,0.2947]
[1735290008585,0.053284,95762.0,95756.0,0.052286]
[1735290008785,0.053284,95762.0,95757.0,0.01147417]
[1735290009090,0.052284,95761.0,95758.0,0.01147417]
[1735290009275,0.052284,95761.0,95759.0,0.01147417]
[1735290009584,0.052284,95761.0,95756.0,0.052286]
[1735290009585,0.052284,95761.0,95760.0,0.01147417]
[1735290009773,0.001,95769.0,95756.0,0.18779388]
[1735290009973,0.052286,95757.0,95756.0,0.18779388]
[1735290010781,0.052287,95755.0,95754.0,0.0943]
[1735290010980,0.12429782,95759.0,95741.0,0.18779388]
[1735290010981,0.052294,95742.0,95741.0,0.18779388]
[1735290012483,0.12429782,95746.0,95741.0,0.002]
[1735290012890,0.052294,95742.0,95741.0,0.002]
[1735290013083,0.057294,95742.0,95741.0,0.002]
[1735290013581,0.052294,95742.0,95741.0,0.003]
[1735290013890,0.052294,95742.0,95741.0,0.001]
[1735290014184,0.060294,95742.0,95741.0,0.001]
[1735290014785,0.009,95742.0,95724.0,0.18779388]
[1735290014985,0.009,95742.0,95725.0,0.01149343]
[1735290014986,0.052303,95727.0,95725.0,0.01149343]
[1735290015284,0.009,95742.0,95724.0,0.18779388]
[1735290015285,0.052298,95735.0,95726.0,0.01149343]
[1735290015588,0.052298,95735.0,95724.0,0.24009788]
[1735290015589,0.052297,95738.0,95732.0,0.052299]
[1735290015785,0.052297,95738.0,95727.0,0.11319343]
[1735290015786,0.052298,95735.0,95733.0,0.21589343]
[1735290015989,0.052298,95735.0,95734.0,0.01149343]
[1735290016682,0.052298,95735.0,95733.0,0.1015]
[1735290016879,0.052298,95735.0,95734.0,0.01151801]
[1735290017285,0.11798672,95744.0,95727.0,0.1017]
[1735290017477,0.052302,95728.0,95727.0,0.1017]
[1735290017677,0.052302,95728.0,95727.0,0.1131982]
[1735290018293,0.052306,95721.0,95720.0,0.18779388]
[1735290018488,0.021086,95727.0,95720.0,0.18779388]
[1735290018991,0.321086,95727.0,95720.0,0.18779388]
[1735290019482,0.12429782,95725.0,95702.0,0.0941]
[1735290019680,0.052314,95706.0,95702.0,0.0941]
[1735290020987,0.052314,95706.0,95702.0,0.0991]
[1735290022077,0.053314,95706.0,95702.0,0.1081]
[1735290023293,0.001,95706.0,95702.0,0.160416]
[1735290024580,0.053314,95706.0,95702.0,0.1081]
[1735290024887,0.052315,95704.0,95702.0,0.1081]
[1735290025894,0.001,95706.0,95700.0,0.1]
[1735290026083,0.052317,95701.0,95700.0,0.1]
[1735290026786,0.001,95704.0,95700.0,0.1]
[1735290027288,0.001,95704.0,95700.0,0.105]
[1735290027695,0.001,95704.0,95701.0,0.052317]
[1735290027991,0.001,95704.0,95702.0,0.052316]
[1735290028192,0.05231,95713.0,95704.0,0.052315]
[1735290028388,0.05231,95713.0,95705.0,0.0978]
[1735290028595,0.05231,95713.0,95705.0,0.150114]
[1735290028800,0.06561474,95720.0,95713.0,0.05231]
[1735290028993,0.01330874,95720.0,95706.0,0.052314]
[1735290029182,0.052304,95725.0,95706.0,0.052314]
[1735290029383,0.01476576,95727.0,95706.0,0.052314]
[1735290029598,0.052307,95719.0,95710.0,0.052311]
[1735290029787,0.052307,95719.0,95705.0,0.0978]
[1735290029987,0.052307,95719.0,95712.0,0.052311]
[1735290030496,0.06723938,95727.0,95719.0,0.052306]
[1735290030689,0.00156769,95727.0,95717.0,0.10485949]
[1735290030886,0.00156769,95727.0,95726.0,0.052303]
[1735290032187,0.00256769,95727.0,95726.0,0.052303]
[1735290032393,0.12429782,95740.0,95739.0,0.052296]
[1735290033002,0.24088266,95747.0,95731.0,0.097]
[1735290033293,0.24088266,95747.0,95741.0,0.052294]
[1735290033799,0.12429782,95749.0,95737.0,0.10485949]
[1735290033988,0.12429782,95749.0,95748.0,0.052291]
[1735290034888,0.12429782,95760.0,95741.0,0.01674737]
[1735290035091,0.12429782,95760.0,95751.0,0.052289]
[1735290035284,0.052285,95759.0,95752.0,0.196]
[1735290035493,0.052286,95757.0,95752.0,0.196]
[1735290036098,0.052287,95755.0,95752.0,0.0976]
[1735290037598,0.058287,95755.0,95752.0,0.0976]
[1735290038095,0.054287,95755.0,95752.0,0.0976]
[1735290038296,0.058287,95755.0,95752.0,0.0976]
[1735290038694,0.052288,95754.0,95752.0,0.0976]
[1735290039592,0.006,95755.0,95730.0,0.10485949]
[1735290039786,0.052292,95745.0,95735.0,0.052297]
[1735290039994,0.052292,95745.0,95736.0,0.01150116]
[1735290040194,0.052292,95745.0,95737.0,0.01150116]
[1735290040503,0.052292,95745.0,95738.0,0.01150116]
[1735290040707,0.052292,95745.0,95739.0,0.01148142]
[1735290040900,0.052292,95745.0,95740.0,0.01148142]
[1735290041100,0.052292,95745.0,95736.0,0.052297]
[1735290041404,0.052292,95745.0,95737.0,0.01148142]
[1735290041606,0.052292,95745.0,95738.0,0.01148142]
[1735290041796,0.052292,95745.0,95739.0,0.01148142]
[1735290041996,0.052292,95745.0,95740.0,0.01148142]
[1735290042197,0.053292,95745.0,95741.0,0.01148142]
[1735290042399,0.053292,95745.0,95742.0,0.01148142]
[1735290042595,0.053292,95745.0,95743.0,0.01148142]
[1735290042908,0.052292,95745.0,95744.0,0.01150489]
[1735290043209,0.054292,95745.0,95744.0,0.01150489]
[1735290043609,0.002,95745.0,95741.0,0.052294]
[1735290043796,0.006,95745.0,95743.0,0.052293]
[1735290044196,0.002,95745.0,95743.0,0.052293]
[1735290044399,0.006,95745.0,95743.0,0.052293]
[1735290045100,0.005,95745.0,95744.0,0.0115254]
[1735290046001,0.003,95745.0,95744.0,0.0115254]
[1735290046198,0.005,95745.0,95744.0,0.0115254]
[1735290046605,0.006,95745.0,95744.0,0.01150452]
[1735290046806,0.004,95745.0,95744.0,0.01150452]
[1735290047008,0.12429782,95761.0,95744.0,0.01150452]
[1735290047313,0.052288,95754.0,95750.0,0.10485949]
[1735290047608,0.12429782,95766.0,95751.0,0.01150365]
[1735290047916,0.052284,95761.0,95756.0,0.10485949]
[1735290048411,0.055284,95761.0,95756.0,0.10485949]
[1735290049401,0.18730111,95788.0,95757.0,0.01150373]
[1735290049716,0.18730111,95788.0,95772.0,0.10485949]
[1735290049910,0.18730111,95788.0,95776.0,0.052275]
[1735290050208,0.18730111,95788.0,95773.0,0.10590373]
[1735290050209,0.20394422,95788.0,95777.0,0.01150119]
[1735290050419,0.01664311,95788.0,95777.0,0.052274]
[1735290050613,0.052268,95790.0,95777.0,0.052274]
[1735290050807,0.052268,95790.0,95781.0,0.052273]
[1735290051003,0.1019,95800.0,95780.0,0.10485949]
[1735290051316,0.052265,95796.0,95784.0,0.052271]
[1735290051615,0.002,95788.0,95784.0,0.052271]
[1735290051818,0.002,95788.0,95786.0,0.05227]
[1735290052205,0.052264,95798.0,95786.0,0.05227]
[1735290052613,0.052264,95798.0,95773.0,0.0944]
[1735290052614,0.052264,95798.0,95788.0,0.15712749]
[1735290053115,0.052261,95802.0,95789.0,0.052268]
[1735290053913,0.001,95798.0,95789.0,0.052268]
[1735290054113,0.001,95798.0,95791.0,0.052267]
[1735290054513,0.052261,95802.0,95791.0,0.052267]
[1735290054715,0.001,95802.0,95795.0,0.052265]
[1735290054911,0.001,95802.0,95796.0,0.0959]
[1735290055220,0.002,95798.0,95796.0,0.0959]
[1735290055909,0.001,95802.0,95796.0,0.0959]
[1735290056121,0.003,95798.0,95796.0,0.0959]
[1735290056510,0.002,95802.0,95796.0,0.0959]
[1735290056715,0.006,95798.0,95796.0,0.0969]
[1735290057113,0.006,95798.0,95796.0,0.0959]
[1735290057319,0.006,95798.0,95796.0,0.0969]
[1735290057622,0.008,95798.0,95796.0,0.0969]
[1735290060513,0.008,95798.0,95796.0,0.001]
[1735290060718,0.060264,95798.0,95796.0,0.001]
[1735290061320,0.07661851,95798.0,95796.0,0.001]
[1735290061629,0.07461851,95798.0,95796.0,0.001]
[1735290061927,0.008,95798.0,95796.0,0.001]
[1735290062122,0.008,95798.0,95797.0,0.1004]
[1735290062821,0.008,95798.0,95797.0,0.346264]
[1735290063220,0.008,95798.0,95797.0,0.347264]
[1735290063422,0.008,95798.0,95797.0,0.36326768]
[1735290063720,0.008,95798.0,95797.0,0.347264]
[1735290064730,0.008,95798.0,95797.0,0.35877866]
[1735290065333,0.008,95798.0,95797.0,0.35777866]
[1735290065334,0.002,95798.0,95797.0,0.35777866]
[1735290065522,0.008,95798.0,95797.0,0.35877866]
[1735290066118,0.193,95824.0,95797.0,0.30651466]
[1735290066332,0.052256,95812.0,95807.0,0.10485949]
[1735290067630,0.052256,95811.0,95807.0,0.10485949]
[1735290067840,0.052257,95810.0,95804.0,0.05226]
[1735290068436,0.052258,95808.0,95801.0,0.10485949]
[1735290068620,0.052258,95808.0,95802.0,0.01156035]
[1735290068824,0.052258,95808.0,95801.0,0.10485949]
[1735290069023,0.052258,95808.0,95802.0,0.01153231]
[1735290069225,0.052258,95808.0,95801.0,0.15712149]
[1735290069626,0.052258,95808.0,95802.0,0.01154999]
[1735290069830,0.052258,95808.0,95804.0,0.001]
[1735290070335,0.058258,95808.0,95804.0,0.001]
[1735290070527,0.058258,95808.0,95802.0,0.052261]
[1735290070730,0.058258,95808.0,95803.0,0.01155269]
[1735290070936,0.058258,95808.0,95802.0,0.052261]
[1735290071236,0.058258,95808.0,95803.0,0.01156502]
[1735290071534,0.058258,95808.0,95804.0,0.01156849]
[1735290071734,0.052258,95808.0,95802.0,0.052261]
[1735290072036,0.060258,95808.0,95803.0,0.01156065]
[1735290072222,0.060258,95808.0,95804.0,0.01156065]
[1735290072548,0.060258,95808.0,95805.0,0.01156065]
[1735290072728,0.060258,95808.0,95806.0,0.01156065]
[1735290073036,0.060258,95808.0,95802.0,0.052261]
[1735290073037,0.060258,95808.0,95807.0,0.01155012]
[1735290073532,0.008,95808.0,95807.0,0.01155012]
[1735290075130,0.01794041,95817.0,95816.0,0.052253]
[1735290075131,0.00156608,95817.0,95816.0,0.052253]
[1735290075328,0.00156608,95817.0,95816.0,0.06380312]
[1735290075826,0.00156608,95817.0,95816.0,0.052253]
[1735290076035,0.00156608,95817.0,95816.0,0.06384263]
[1735290076246,0.00256608,95817.0,95816.0,0.07184263]
[1735290076433,0.00256608,95817.0,95816.0,0.07484263]
[1735290077343,0.00256608,95817.0,95816.0,0.09016177]
[1735290081930,0.00256608,95817.0,95816.0,0.26636602]
[1735290082132,0.00256608,95817.0,95816.0,0.27795099]
[1735290083634,0.00256608,95817.0,95816.0,0.09015711]
[1735290083836,0.00256608,95817.0,95816.0,0.07857214]
[1735290087940,0.00256608,95817.0,95816.0,0.07057214]
[1735290088245,0.00156608,95817.0,95816.0,0.07757214]
[1735290088635,0.00156608,95817.0,95816.0,0.062253]
[1735290092542,0.00156608,95817.0,95816.0,0.31157649]
[1735290092939,0.06782516,95831.0,95827.0,0.052247]
[1735290093233,0.052246,95831.0,95827.0,0.052247]
[1735290094238,0.052246,95831.0,95827.0,0.060247]
[1735290094634,0.052246,95831.0,95828.0,0.052247]
[1735290094846,0.0999,95834.0,95827.0,0.011]
[1735290095050,0.0999,95834.0,95831.0,0.052245]
[1735290095247,0.114894,95834.0,95831.0,0.052245]
[1735290096451,0.114894,95834.0,95833.0,0.052244]
[1735290097653,0.0999,95834.0,95833.0,0.052244]
[1735290097849,0.0999,95834.0,95833.0,0.060244]
[1735290098748,0.0999,95834.0,95833.0,0.064244]
[1735290101249,0.01397724,95838.0,95837.0,0.052242]
[1735290101555,0.20793756,95842.0,95837.0,0.052242]
[1735290102149,0.052239,95842.0,95837.0,0.052242]